bitfinex/quotes_ETHUSD_20251120
["timestamp","ask_amount","ask_price","bid_price","bid_amount"]
[1763659065558,0.81194593,2816.4,2814.0,0.134]
[1763659065559,0.1,2815.1,2814.0,0.134]
[1763659065851,0.1,2815.6,2814.0,0.134]
[1763659066180,0.1,2815.0,2813.9,0.135]
[1763659066381,0.2819,2815.2,2813.9,0.135]
[1763659066545,0.1,2815.6,2813.9,1.04199264]
[1763659066743,0.1,2815.7,2814.0,0.405504]
[1763659067144,0.5736,2815.7,2814.0,0.405504]
[1763659067368,0.4736,2815.7,2814.0,0.405504]
[1763659067681,0.4736,2815.7,2813.9,0.135]
[1763659068096,0.4736,2815.7,2814.0,0.405504]
[1763659068235,0.1,2815.6,2814.0,0.405504]
[1763659068432,0.5736,2815.7,2814.0,0.405504]
[1763659068679,0.1,2815.4,2813.9,0.135]
[1763659068893,0.1819,2815.3,2813.9,0.135]
[1763659069096,0.1819,2815.3,2813.9,0.001]
[1763659069252,0.1,2815.0,2813.9,0.001]
[1763659069768,0.2819,2815.3,2813.9,0.001]
[1763659069943,0.4736,2815.5,2813.9,0.406504]
[1763659070142,0.2819,2815.7,2813.9,0.406504]
[1763659070458,0.1,2815.3,2813.9,0.406504]
[1763659070856,0.4736,2815.3,2814.0,0.134]
[1763659071072,0.1,2815.0,2814.0,0.134]
[1763659071364,0.1,2815.1,2814.0,0.134]
[1763659071763,0.5736,2815.1,2814.0,0.134]
[1763659072064,0.1819,2815.7,2814.0,0.134]
[1763659072065,0.1,2815.5,2814.0,0.134]
[1763659072876,0.5736,2815.5,2814.0,0.134]
[1763659073062,0.56583802,2815.5,2814.0,0.134]
[1763659073377,0.1819,2815.7,2814.1,0.405504]
[1763659073562,0.4736,2815.6,2814.1,0.405504]
[1763659073780,0.4736,2815.6,2813.9,0.001]
[1763659073960,0.09223802,2815.3,2814.0,0.134]
[1763659074156,0.09223802,2815.3,2813.9,0.001]
[1763659074358,0.4736,2815.2,2813.9,0.001]
[1763659074683,0.226,2813.0,2812.7,1.85954632]
[1763659074912,0.226,2813.0,2812.8,0.134]
[1763659075869,0.226,2813.0,2812.7,0.135]
[1763659076191,0.226,2813.0,2812.8,0.90699264]
[1763659076490,0.4736,2814.6,2812.9,1.31249664]
[1763659076788,0.1819,2814.7,2813.1,0.405504]
[1763659076956,0.1819,2814.7,2812.9,4.417736]
[1763659076957,0.6555,2814.7,2812.9,4.417736]
[1763659077154,0.09223802,2814.6,2813.0,0.405504]
[1763659077358,0.09223802,2814.6,2812.8,0.405504]
[1763659077589,0.56583802,2814.6,2812.8,0.405504]
[1763659078092,0.1819,2814.7,2813.0,0.405504]
[1763659078459,0.74773802,2814.7,2812.8,0.405504]
[1763659078653,0.1819,2815.1,2812.9,0.405504]
[1763659078870,0.1819,2815.1,2813.1,0.405504]
[1763659079166,0.4736,2815.0,2813.3,0.90699264]
[1763659079367,0.002,2815.5,2813.3,1.31249664]
[1763659079587,0.002,2815.5,2813.6,2.304889]
[1763659079588,0.56583802,2815.4,2813.6,2.304889]
[1763659079763,0.56583802,2815.4,2813.7,0.405504]
[1763659079964,0.56583802,2815.4,2813.8,0.134]
[1763659080164,0.09223802,2815.2,2813.8,0.134]
[1763659080597,0.4736,2815.1,2813.1,0.90699264]
[1763659080762,0.09223802,2814.9,2813.3,0.405504]
[1763659080963,0.4736,2815.1,2813.4,2.78615]
[1763659081184,0.4736,2815.1,2813.2,0.134]
[1763659081383,0.4736,2815.1,2813.1,0.134]
[1763659081724,0.09223802,2814.8,2813.1,0.134]
[1763659082018,0.09223802,2814.4,2813.1,0.134]
[1763659082222,7.601478,2814.7,2812.4,0.1613]
[1763659082432,7.601478,2814.3,2811.9,0.134]
[1763659082586,0.4736,2814.9,2812.2,0.90699264]
[1763659082919,0.4736,2815.0,2813.2,0.405504]
[1763659083216,0.56583802,2815.0,2813.3,0.134]
[1763659083416,0.56583802,2815.0,2813.4,0.134]
[1763659083721,0.4736,2815.0,2813.4,0.134]
[1763659083906,0.09223802,2815.4,2813.6,0.405504]
[1763659084095,0.09223802,2815.4,2813.4,0.134]
[1763659084422,0.4736,2815.3,2813.5,0.134]
[1763659084619,0.09223802,2814.7,2813.2,0.134]
[1763659084822,0.002,2815.5,2813.6,0.90699264]
[1763659085048,0.4736,2815.4,2813.5,1.85954632]
[1763659085252,0.4736,2815.4,2813.6,0.539504]
[1763659085420,0.002,2815.5,2813.6,0.539504]
[1763659085610,0.002,2815.5,2813.8,2.117351]
[1763659085957,0.002,2815.5,2814.1,0.405504]
[1763659086109,0.002,2815.5,2814.5,1.31249664]
[1763659086315,0.002,2815.5,2814.5,0.405504]
[1763659086550,0.002,2815.5,2814.4,0.405504]
[1763659086718,0.002,2815.5,2813.7,0.90699264]
[1763659086719,0.4736,2815.4,2813.7,0.134]
[1763659087110,0.09223802,2814.9,2813.7,0.134]
[1763659087309,0.4736,2815.4,2813.7,0.134]
[1763659087548,0.1819,2815.1,2813.7,0.134]
[1763659087870,0.1819,2815.1,2813.1,1.85954632]
[1763659087871,0.09223802,2814.9,2813.8,0.134]
[1763659088075,0.6555,2815.1,2813.7,0.134]
[1763659088076,8.256978,2815.1,2813.7,0.134]
[1763659088351,0.09223802,2814.4,2813.7,0.134]
[1763659088791,0.1892,2813.8,2812.7,0.001]
[1763659088918,0.6852,2814.3,2812.9,0.134]
[1763659089125,0.496,2814.9,2812.9,0.134]
[1763659089320,0.1819,2815.1,2813.1,0.90699264]
[1763659089555,0.1892,2815.4,2813.6,0.405504]
[1763659089754,0.002,2815.5,2813.8,0.405504]
[1763659089941,0.002,2815.5,2814.2,0.405504]
[1763659090151,0.002,2815.5,2814.4,0.405504]
[1763659090355,0.002,2815.5,2814.6,0.405504]
[1763659090555,0.002,2815.5,2814.8,0.405504]
[1763659090952,0.002,2815.5,2814.7,2.440519]
[1763659091152,0.002,2815.5,2814.5,1.85954632]
[1763659091153,0.002,2815.5,2815.0,0.405504]
[1763659091452,0.002,2815.5,2814.6,1.85954632]
[1763659091653,0.002,2815.5,2815.1,0.405504]
[1763659091830,0.002,2815.5,2814.5,1.85954632]
[1763659092030,0.002,2815.5,2814.7,0.405504]
[1763659092232,0.002,2815.5,2814.9,0.405504]
[1763659092970,0.002,2815.5,2815.0,0.134]
[1763659093273,0.002,2815.5,2815.1,0.44102671]
[1763659093570,0.002,2816.1,2815.6,0.405504]
[1763659093755,0.002,2816.1,2815.2,0.405504]
[1763659093958,0.002,2816.1,2815.7,0.134]
[1763659094563,0.1892,2818.3,2816.0,7.601478]
[1763659094760,0.496,2817.5,2816.1,0.134]
[1763659094961,0.496,2817.5,2816.2,0.405504]
[1763659095162,0.496,2817.5,2815.6,1.85954632]
[1763659095379,0.496,2817.5,2815.9,4.11234]
[1763659095582,0.09223802,2817.9,2816.3,0.405504]
[1763659095880,0.496,2819.3,2817.0,5.40942207]
[1763659096049,0.496,2819.3,2816.8,7.601478]
[1763659096050,0.496,2819.3,2817.1,2.76653896]
[1763659096255,0.09223802,2819.2,2817.2,0.539504]
[1763659096555,0.09223802,2819.2,2816.8,1.85954632]
[1763659096556,0.04433881,2819.2,2817.3,0.134]
[1763659096756,7.601478,2818.8,2815.9,1.85954632]
[1763659096958,1.40299264,2818.7,2816.0,0.134]
[1763659097159,0.09223802,2817.8,2816.1,0.405504]
[1763659097361,0.58823802,2818.6,2816.5,0.405504]
[1763659097559,0.09223802,2818.5,2816.8,0.405504]
[1763659097762,0.496,2818.6,2817.0,0.405504]
[1763659097962,0.496,2819.0,2817.1,0.90699264]
[1763659098178,0.496,2819.0,2817.2,0.405504]
[1763659098351,0.496,2819.0,2816.2,1.85954632]
[1763659098352,7.601478,2818.7,2816.2,1.85954632]
[1763659098672,0.85238582,2818.6,2816.5,0.405504]
[1763659098849,0.496,2818.9,2816.5,0.405504]
[1763659099052,0.09223802,2818.5,2816.5,0.405504]
[1763659099441,0.09223802,2818.2,2816.5,0.405504]
[1763659099678,0.496,2819.1,2817.1,1.31249664]
[1763659099864,0.496,2819.1,2817.2,0.134]
[1763659100279,0.09223802,2818.6,2816.6,0.90699264]
[1763659100481,0.496,2818.5,2815.5,3.987071]
[1763659100746,0.496,2818.5,2814.8,2.45957183]
[1763659100747,0.405504,2818.2,2814.3,1.85954632]
[1763659101013,0.90699264,2818.8,2814.5,3.236418]
[1763659101014,0.09223802,2816.6,2814.5,3.236418]
[1763659101157,0.09223802,2816.9,2814.6,0.90699264]
[1763659101357,0.1892,2816.5,2814.7,3.27468564]
[1763659101659,7.601478,2817.6,2814.7,2.535382]
[1763659101859,0.09223802,2817.1,2814.8,3.55265027]
[1763659102058,0.8097478,2817.5,2814.8,3.55265027]
[1763659102059,0.09223802,2817.3,2815.1,0.90699264]
[1763659102293,0.58823802,2817.4,2815.2,2.369278]
[1763659102460,0.58823802,2817.4,2815.3,0.134]
[1763659102461,0.09223802,2817.3,2815.3,0.134]
[1763659102660,0.496,2817.4,2815.4,0.405504]
[1763659102860,0.09223802,2817.3,2815.4,0.405504]
[1763659103093,0.1892,2818.1,2816.0,0.405504]
[1763659103295,7.601478,2819.7,2816.4,0.405504]
[1763659103502,7.601478,2819.7,2816.0,0.90699264]
[1763659103503,0.48639508,2818.8,2817.1,10.262199]
[1763659103679,0.1892,2819.5,2817.2,8.91397464]
[1763659103880,0.1892,2819.5,2817.5,1.31249664]
[1763659104080,0.002,2820.5,2817.9,1.31249664]
[1763659104274,0.1892,2820.3,2818.2,1.31249664]
[1763659104471,0.1892,2820.3,2818.1,0.90699264]
[1763659104670,0.1892,2820.3,2818.2,0.134]
[1763659104882,0.1892,2820.3,2816.9,1.85954632]
[1763659104883,7.601478,2820.0,2816.7,7.601478]
[1763659105083,0.99923066,2819.9,2817.0,1.31249664]
[1763659105396,0.99923066,2819.9,2816.9,0.405504]
[1763659105397,0.09223802,2819.4,2816.9,0.405504]
[1763659105801,0.77743802,2819.3,2817.1,1.31249664]
[1763659105996,0.77743802,2819.3,2816.8,1.04099264]
[1763659106315,0.77743802,2819.3,2816.8,0.134]
[1763659106316,0.09223802,2818.9,2816.8,0.134]
[1763659106600,0.496,2819.2,2817.3,1.31249664]
[1763659106778,0.496,2819.1,2817.3,0.405504]
[1763659106968,0.496,2819.1,2817.0,2.089003]
[1763659106969,0.09223802,2819.0,2817.0,2.089003]
[1763659107168,0.09223802,2819.0,2817.1,0.405504]
[1763659107502,0.496,2818.9,2816.8,0.134]
[1763659107717,0.09223802,2818.4,2816.8,0.134]
[1763659107880,0.09223802,2818.1,2816.8,0.134]
[1763659108076,0.7693716,2818.3,2816.8,0.134]
[1763659108316,0.1892,2819.3,2816.8,0.134]
[1763659108480,0.496,2818.5,2817.1,0.405504]
[1763659109100,0.496,2818.5,2816.8,0.134]
[1763659109417,0.09223802,2818.3,2816.8,0.134]
[1763659109712,0.4946,2818.3,2816.8,0.134]
[1763659110510,0.09223802,2817.8,2816.8,0.134]
[1763659110699,0.8096078,2818.2,2816.8,0.134]
[1763659110898,0.1841,2817.7,2816.8,0.135]
[1763659111299,0.6787,2817.7,2816.8,0.135]
[1763659111832,0.4946,2817.6,2816.8,0.135]
[1763659111991,8.096078,2817.6,2816.5,0.001]
[1763659112320,0.1841,2816.6,2816.5,0.001]
[1763659112687,0.6787,2816.6,2815.3,0.134]
[1763659113114,0.4946,2816.5,2815.3,0.134]
[1763659113424,0.4946,2817.0,2815.4,3.746495]
[1763659113621,0.4946,2817.0,2815.5,1.31249664]
[1763659113834,0.4946,2817.0,2815.4,0.405504]
[1763659114014,0.4946,2817.6,2815.9,1.31249664]
[1763659114186,0.58683802,2817.6,2815.9,0.405504]
[1763659114389,0.4946,2817.6,2815.3,0.134]
[1763659114579,0.4946,2817.6,2815.5,3.08399264]
[1763659114779,0.09223802,2817.4,2815.7,0.405504]
[1763659115013,0.09223802,2817.4,2815.4,0.405504]
[1763659115314,0.4946,2817.3,2815.6,0.405504]
[1763659115518,0.1841,2817.7,2815.7,0.44101914]
[1763659115721,0.4946,2817.8,2816.3,1.31249664]
[1763659115931,7.601478,2819.7,2816.8,0.405504]
[1763659116215,0.4946,2818.8,2816.4,0.134]
[1763659116380,0.4946,2818.8,2816.7,0.405504]
[1763659116579,0.58683802,2818.8,2816.9,0.405504]
[1763659116825,0.58683802,2818.8,2816.5,0.90699264]
[1763659116994,0.58683802,2818.8,2816.4,0.134]
[1763659116995,7.601478,2818.7,2816.4,0.134]
[1763659117192,0.09223802,2818.0,2816.4,0.134]
[1763659117717,0.09223802,2817.6,2816.4,0.134]
[1763659118022,0.58683802,2817.5,2816.4,0.134]
[1763659118189,0.4946,2817.5,2816.4,0.134]
[1763659118381,0.4946,2817.5,2815.3,3.55199582]
[1763659118622,0.4946,2817.5,2815.4,0.134]
[1763659118791,0.09223802,2817.3,2815.4,0.134]
[1763659119193,0.1841,2817.9,2815.6,0.90699264]
[1763659119395,0.4671,2818.3,2816.2,0.90699264]
[1763659119592,0.4671,2818.3,2816.7,1.31249664]
[1763659119795,0.4671,2818.3,2816.9,0.405504]
[1763659120006,0.4671,2818.3,2816.8,0.134]
[1763659120523,0.4671,2818.3,2816.9,0.405504]
[1763659121231,0.4671,2818.8,2817.0,3.25820064]
[1763659121393,0.002,2819.1,2817.4,0.405504]
[1763659121581,0.4671,2819.0,2817.4,0.405504]
[1763659121785,0.09223802,2818.9,2816.9,0.405504]
[1763659121997,0.4671,2818.9,2817.0,0.405504]
[1763659122198,0.4671,2818.9,2817.4,1.31249664]
[1763659122398,0.4671,2818.9,2817.5,2.034943]
[1763659122638,0.002,2819.1,2817.9,6.26155821]
[1763659122820,0.002,2819.1,2818.0,0.134]
[1763659123022,0.4691,2819.1,2818.0,0.134]
[1763659123399,0.002,2819.1,2818.3,6.26155821]
[1763659123597,0.4691,2820.5,2818.0,0.134]
[1763659123598,0.002,2820.5,2819.1,0.405504]
[1763659123800,0.002,2820.5,2818.8,6.26155821]
[1763659123801,0.4671,2820.3,2819.2,0.134]
[1763659124089,0.4691,2820.5,2819.3,0.405504]
[1763659124324,0.002,2820.5,2819.5,1.31249664]
[1763659124633,0.002,2820.5,2820.2,6.26155821]
[1763659124925,0.002,2820.5,2820.3,0.134]
[1763659126639,0.002,2820.5,2820.3,7.89821872]
[1763659126965,0.002,2822.6,2821.0,10.628467]
[1763659127141,0.002,2822.6,2821.3,6.26155821]
[1763659127459,0.002,2825.0,2822.1,0.405504]
[1763659127460,0.1906,2824.2,2822.1,0.405504]
[1763659127621,0.1906,2824.2,2822.5,6.94880064]
[1763659127819,0.6577,2824.6,2822.8,6.26155821]
[1763659128017,0.4671,2824.5,2822.9,1.44549664]
[1763659128218,0.4671,2824.5,2823.0,0.133]
[1763659128638,0.4671,2824.5,2822.4,7.16855085]
[1763659128859,0.4671,2824.5,2822.2,0.64117961]
[1763659129022,0.09223802,2824.1,2822.3,0.133]
[1763659129427,0.4671,2824.0,2822.3,0.133]
[1763659129934,0.09223802,2823.9,2822.3,0.133]
[1763659130168,0.09223802,2823.9,2822.4,0.133]
[1763659130309,0.1906,2824.6,2822.4,0.133]
[1763659130310,0.4671,2823.8,2822.4,0.133]
[1763659130840,0.4671,2823.8,2822.5,0.133]
[1763659130841,0.09223802,2823.6,2822.5,0.133]
[1763659131043,0.4671,2823.8,2822.5,0.133]
[1763659131230,0.4671,2823.7,2821.6,2.725345]
[1763659131435,0.09223802,2823.6,2821.8,0.90699264]
[1763659131746,0.4671,2823.7,2821.9,0.133]
[1763659132047,0.4671,2823.7,2820.6,2.632526]
[1763659132048,0.405504,2823.5,2820.6,2.632526]
[1763659132222,0.405504,2823.1,2820.7,0.133]
[1763659132422,0.09223802,2822.2,2820.8,0.16845093]
[1763659132631,0.4671,2823.0,2820.9,2.119581]
[1763659132839,0.4671,2823.0,2820.8,0.16845093]
[1763659132840,0.55933802,2823.0,2820.8,0.133]
[1763659133012,0.09223802,2822.6,2820.9,2.98]
[1763659133212,0.09223802,2822.8,2820.9,3.123592]
[1763659133553,0.4671,2822.7,2821.1,0.90699264]
[1763659133717,0.4671,2822.7,2821.2,0.133]
[1763659133920,0.09223802,2822.4,2820.3,6.26155821]
[1763659134280,0.09223802,2821.4,2820.1,0.133]
[1763659134573,0.1906,2822.3,2820.1,1.03999264]
[1763659134864,0.4671,2822.2,2820.6,0.405504]
[1763659135071,0.71255216,2824.5,2820.2,0.133]
[1763659135072,0.4671,2822.8,2821.4,6.26155821]
[1763659135275,0.4671,2822.8,2821.5,0.133]
[1763659135436,0.4671,2822.8,2821.6,0.133]
[1763659135637,0.09223802,2822.6,2821.6,0.133]
[1763659136263,0.4671,2822.6,2821.6,0.133]
[1763659136566,0.1906,2821.7,2821.1,0.133]
[1763659136724,0.4671,2822.6,2821.1,0.133]
[1763659137075,0.4671,2822.6,2820.4,6.26155821]
[1763659137076,0.28283802,2822.1,2820.4,6.26155821]
[1763659137274,0.4671,2822.0,2820.5,0.133]
[1763659137622,0.4671,2822.0,2820.7,0.90699264]
[1763659138455,0.4671,2822.0,2820.7,3.54518048]
[1763659138765,0.4671,2822.0,2820.1,6.26155821]
[1763659138964,0.1906,2820.2,2819.0,30.0]
[1763659139264,0.1906,2819.4,2817.9,3.54874197]
[1763659139428,0.1906,2819.4,2818.0,0.133]
[1763659139626,0.4671,2819.3,2818.0,0.133]
[1763659139951,0.4671,2819.3,2818.1,2.202236]
[1763659140136,0.4671,2819.3,2818.0,0.133]
[1763659140462,0.4671,2819.9,2818.5,6.26155821]
[1763659140624,0.4671,2820.6,2819.2,12.122018]
[1763659140826,6.26155821,2822.9,2820.1,0.90699264]
[1763659141035,0.1906,2823.4,2820.6,0.90699264]
[1763659141036,0.4671,2822.0,2820.6,0.90699264]
[1763659141366,0.4671,2822.0,2820.7,0.133]
[1763659141571,0.4671,2822.0,2818.0,10.64583094]
[1763659141572,0.1906,2820.8,2818.0,10.64583094]
[1763659141726,0.4671,2822.0,2819.2,0.405504]
[1763659141927,0.4671,2821.9,2820.0,1.31249664]
[1763659142127,0.4671,2821.9,2820.1,2.164719]
[1763659142363,0.4671,2821.9,2820.2,0.133]
[1763659142668,6.26155821,2821.8,2818.8,6.26155821]
[1763659142970,0.93102101,2821.9,2817.4,0.05]
[1763659142971,0.09223802,2820.4,2817.4,6.049872]
[1763659143130,0.09223802,2820.0,2817.7,3.765631]
[1763659143332,6.26155821,2820.8,2817.5,0.133]
[1763659143333,0.405504,2820.2,2817.5,0.133]
[1763659143573,6.26155821,2819.3,2817.6,0.133]
[1763659143743,6.26155821,2819.3,2815.9,3.55126247]
[1763659143744,0.1906,2817.7,2816.0,3.358826]
[1763659143948,0.1906,2817.7,2816.1,0.133]
[1763659143949,0.4671,2817.6,2816.1,0.133]
[1763659144274,0.4671,2817.6,2816.2,0.133]
[1763659144978,0.09223802,2817.5,2816.3,0.133]
[1763659145150,0.1906,2817.7,2816.3,0.133]
[1763659145350,0.4671,2817.5,2816.3,0.133]
[1763659145676,0.1906,2817.7,2816.3,0.133]
[1763659145872,0.4671,2817.6,2816.3,0.133]
[1763659146170,0.1906,2818.2,2816.6,3.865404]
[1763659146376,0.1906,2818.2,2816.1,6.26155821]
[1763659146377,0.09223802,2818.1,2816.1,6.26155821]
[1763659146585,0.09223802,2817.9,2816.7,0.133]
[1763659146738,0.09223802,2817.9,2815.5,6.26255821]
[1763659146938,0.4671,2817.8,2815.6,12.275811]
[1763659147144,0.4671,2818.6,2816.6,0.90699264]
[1763659147339,0.4671,2818.6,2817.0,7.57405485]
[1763659147538,0.1906,2818.9,2817.1,0.90699264]
[1763659147789,0.1906,2818.9,2816.7,0.133]
[1763659147790,0.6577,2818.9,2816.7,0.133]
[1763659147939,0.6577,2818.9,2816.8,0.133]
[1763659148146,0.6577,2818.9,2817.3,0.405504]
[1763659148452,0.4924,2819.4,2817.8,2.491894]
[1763659148653,0.4924,2819.4,2817.9,0.133]
[1763659149068,0.58463802,2819.4,2818.0,0.133]
[1763659149254,0.09223802,2819.2,2816.6,0.90699264]
[1763659149459,0.4924,2819.1,2817.0,0.90699264]
[1763659149686,0.09223802,2818.7,2816.9,2.1265]
[1763659149887,0.09223802,2818.7,2816.8,2.183391]
[1763659150064,0.09223802,2818.1,2816.7,0.133]
[1763659150263,0.1822,2816.8,2815.0,3.55331404]
[1763659150463,0.6746,2818.0,2815.8,0.133]
[1763659150764,0.4924,2817.9,2816.5,0.90699264]
[1763659150958,0.09223802,2817.8,2816.3,0.001]
[1763659151153,0.4924,2817.9,2816.3,0.001]
[1763659151463,0.4924,2817.8,2816.4,0.133]
[1763659151652,0.4924,2817.8,2816.5,2.076276]
[1763659151856,0.1822,2818.0,2816.3,6.26255821]
[1763659152080,0.4924,2817.9,2816.3,0.001]
[1763659152296,0.4924,2817.9,2816.4,0.133]
[1763659152654,0.4924,2817.9,2816.3,0.001]
[1763659152859,0.4924,2817.9,2816.4,0.133]
[1763659153195,0.4924,2817.9,2816.5,0.90699264]
[1763659153512,0.4924,2817.9,2816.6,0.133]
[1763659153801,0.09223802,2817.8,2816.3,0.001]
[1763659153962,0.4924,2817.7,2816.4,0.133]
[1763659154574,6.26155821,2819.5,2816.9,6.26155821]
[1763659154918,0.1906,2820.3,2816.6,12.327594]
[1763659154919,0.1822,2819.2,2817.6,0.90699264]
[1763659155201,0.4924,2819.9,2818.1,0.90699264]
[1763659155353,0.4924,2819.9,2816.6,0.05]
[1763659155354,0.1822,2819.5,2816.5,30.0]
[1763659155553,0.1822,2819.5,2816.7,6.42117764]
[1763659155794,0.09223802,2819.3,2817.4,0.90699264]
[1763659155981,0.09223802,2819.3,2817.2,0.90699264]
[1763659156181,0.4924,2819.2,2817.4,0.90699264]
[1763659156379,0.4924,2819.2,2817.1,6.26155821]
[1763659156380,0.4924,2819.2,2817.5,0.133]
[1763659156804,0.4924,2819.2,2817.5,0.90699264]
[1763659157008,0.4924,2819.2,2817.7,3.999]
[1763659157209,0.1822,2819.5,2818.0,0.90699264]
[1763659157415,0.1822,2819.5,2818.1,1.07547754]
[1763659157733,4.26333075,2821.7,2818.1,1.07547754]
[1763659157734,0.4924,2822.1,2819.6,0.405504]
[1763659157906,0.4924,2822.1,2819.9,0.405504]
[1763659157907,6.26155821,2822.1,2819.9,0.405504]
[1763659158106,6.26155821,2821.6,2820.0,0.133]
[1763659158305,6.26155821,2821.6,2818.6,9.80936251]
[1763659158306,6.26155821,2821.6,2819.2,0.90699264]
[1763659158498,0.90699264,2821.0,2818.0,12.748554]
[1763659158701,0.09223802,2820.5,2818.2,6.212603]
[1763659158895,0.4924,2820.9,2818.9,6.26155821]
[1763659159109,0.4924,2821.6,2819.6,0.405504]
[1763659159312,0.4924,2821.6,2819.8,1.31249664]
[1763659159510,0.4924,2821.6,2819.9,0.133]
[1763659159714,0.09223802,2821.2,2819.9,0.133]
[1763659160153,0.4924,2821.1,2819.9,0.133]
[1763659160637,0.09223802,2821.0,2819.0,0.90699264]
[1763659160948,0.09223802,2821.0,2819.1,0.133]
[1763659161103,0.09223802,2820.4,2819.1,0.133]
[1763659161305,0.6746,2820.3,2819.1,0.133]
[1763659161925,0.1822,2820.8,2819.1,6.39455821]
[1763659162125,0.1822,2820.8,2817.7,12.89587286]
[1763659162302,0.09223802,2820.5,2818.4,6.26155821]
[1763659162505,0.4924,2820.7,2818.4,6.26155821]
[1763659162506,0.58463802,2820.7,2818.6,0.405504]
[1763659162829,0.58463802,2820.7,2818.4,6.26155821]
[1763659162830,0.4924,2820.6,2818.4,6.26155821]
[1763659163140,0.09223802,2820.4,2818.6,2.333]
[1763659163327,0.09223802,2820.4,2818.5,0.133]
[1763659163513,0.4924,2820.3,2818.5,0.133]
[1763659163833,0.4924,2820.3,2817.6,6.26155821]
[1763659163834,0.09223802,2820.0,2817.6,6.26155821]
[1763659164056,0.09223802,2820.0,2817.9,3.54874197]
[1763659164355,0.09223802,2820.0,2817.8,3.261878]
[1763659164356,0.6746,2819.9,2818.1,7.16855085]
[1763659164560,0.6746,2819.9,2817.8,16.12780188]
[1763659164561,0.4924,2820.5,2818.7,3.26744664]
[1763659164860,0.4924,2820.5,2818.8,0.133]
[1763659165031,0.4924,2820.5,2819.2,0.90699264]
[1763659165231,0.1822,2820.8,2819.3,0.405504]
[1763659165435,0.6746,2820.8,2819.4,0.90699264]
[1763659165621,6.44375821,2823.0,2820.2,0.405504]
[1763659166568,0.002,2821.1,2820.4,0.133]
[1763659166788,0.002,2821.1,2820.7,0.405504]
[1763659167071,0.002,2821.1,2820.7,2.056857]
[1763659167236,0.002,2821.1,2820.8,0.133]
[1763659167622,0.002,2821.1,2820.7,0.90699264]
[1763659167826,0.002,2821.1,2820.8,0.133]
[1763659168127,0.002,2821.1,2820.5,0.133]
[1763659168833,0.4924,2821.0,2820.0,0.133]
[1763659169071,0.4924,2821.0,2818.8,10.57125821]
[1763659169072,0.09223802,2820.8,2818.8,6.26155821]
[1763659169233,0.09223802,2820.4,2817.9,6.26155821]
[1763659169432,0.09223802,2819.7,2818.0,0.133]
[1763659169656,0.09223802,2819.9,2818.0,1.03999264]
[1763659169846,0.1823,2819.6,2818.2,0.90699264]
[1763659170142,0.4812,2820.3,2818.6,2.521001]
[1763659170329,0.4812,2820.3,2818.5,2.271212]
[1763659170525,0.4812,2820.3,2818.5,2.351818]
[1763659170526,0.57343802,2820.3,2818.5,2.351818]
[1763659170761,0.57343802,2820.3,2818.9,6.26155821]
[1763659170762,0.4812,2820.3,2818.9,6.26155821]
[1763659170981,0.002,2821.1,2819.5,0.90699264]
[1763659170982,0.4812,2820.9,2819.5,0.90699264]
[1763659171129,0.002,2821.1,2820.0,7.641577]
[1763659171330,0.002,2821.1,2820.5,0.90699264]
[1763659171612,0.002,2821.1,2821.0,5.22284764]
[1763659171755,0.002,2821.1,2821.0,0.90699264]
[1763659172363,0.002,2821.1,2820.5,6.26155821]
[1763659172580,0.002,2821.1,2820.2,0.90699264]
[1763659172740,0.002,2821.1,2820.3,0.133]
[1763659173277,0.002,2821.1,2820.4,0.133]
[1763659173563,0.002,2821.1,2820.5,3.581627]
[1763659173764,0.002,2821.1,2820.4,0.133]
[1763659174127,0.4812,2821.0,2819.0,6.26155821]
[1763659174473,0.4812,2821.0,2818.4,6.26155821]
[1763659174632,0.09223802,2820.4,2817.9,6.26155821]
[1763659174837,0.09223802,2820.0,2817.8,0.001]
[1763659175032,0.4812,2820.3,2817.8,0.001]
[1763659175033,0.4812,2820.3,2818.0,0.133]
[1763659175279,0.09223802,2819.9,2818.0,0.133]
[1763659175731,0.6635,2819.8,2818.0,0.133]
[1763659175931,0.6635,2819.8,2817.8,0.90799264]
[1763659176134,0.4812,2819.7,2817.9,0.03548741]
[1763659176378,0.4812,2819.7,2817.9,0.133]
[1763659176750,0.57343802,2819.7,2817.9,0.133]
[1763659177575,0.4812,2819.7,2818.1,0.90699264]
[1763659177738,0.09223802,2819.6,2818.2,0.133]
[1763659178070,0.4812,2819.7,2818.2,0.133]
[1763659178273,0.4503,2819.6,2818.2,0.133]
[1763659178633,0.4503,2819.6,2818.3,2.34848238]
[1763659178937,0.1823,2819.8,2818.4,0.405504]
[1763659179155,0.4503,2820.1,2818.5,2.470326]
[1763659179356,0.1823,2821.5,2819.2,6.26155821]
[1763659179357,0.4503,2820.6,2819.2,6.26155821]
[1763659179558,0.4503,2820.6,2818.2,4.25604929]
[1763659179780,0.09223802,2820.5,2818.8,0.90699264]
[1763659180000,0.54253802,2820.6,2818.9,0.133]
[1763659180294,0.4503,2820.5,2818.9,0.133]
[1763659180510,0.4503,2820.5,2817.8,6.26255821]
[1763659180511,0.54253802,2820.5,2817.8,6.26255821]
[1763659180688,0.1993,2819.0,2817.8,0.001]
[1763659180995,0.29153802,2819.0,2817.9,0.133]
[1763659181203,0.4503,2818.9,2817.9,0.133]
[1763659181558,0.4503,2818.9,2817.8,0.001]
[1763659181765,0.09223802,2818.8,2817.8,0.001]